fUSD/lending_fUSD_20240407
["ID","MTS","AMOUNT","RATE_DAILY","PERIOD"]
[321773514,1712505166856,-500.0,0.00024931,2]
[321773515,1712505166865,-513.98023532,0.00024931,2]
[321773516,1712505166875,-500.0,0.00024931,2]
[321773517,1712505166885,-896.03,0.00024931,2]
[321773518,1712505166894,-537.47204734,0.00024931,2]
[321773519,1712505166904,-1372.06,0.00024931,2]
[321773520,1712505166914,-500.0,0.00024931,2]
[321773521,1712505166923,-2580.19,0.00024931,2]
[321773522,1712505166933,-500.0,0.00024931,2]
[321773523,1712505166943,-500.0,0.00024931,2]
[321773524,1712505166952,-896.03,0.00024931,2]
[321773525,1712505166962,-500.0,0.00024931,2]
[321773526,1712505166971,-1286.53,0.00024931,2]
[321773527,1712505166981,-1372.06,0.00024931,2]
[321773528,1712505166990,-500.0,0.00024931,2]
[321773529,1712505167000,-2580.19,0.00024931,2]
[321773530,1712505167010,-538.39,0.00024931,2]
[321773531,1712505167020,-500.0,0.00024931,2]
[321773532,1712505167029,-896.03,0.00024931,2]
[321773533,1712505167039,-500.0,0.00024931,2]
[321773534,1712505167049,-1286.53,0.00024931,2]
[321773535,1712505167059,-1372.06,0.00024931,2]
[321773536,1712505167069,-2580.19,0.00024931,2]
[321773537,1712505167078,-500.0,0.00024931,2]
[321773538,1712505167088,-500.0,0.00024931,2]
[321773539,1712505167099,-896.03,0.00024931,2]
[321773540,1712505167108,-500.0,0.00024931,2]
[321773541,1712505167116,-1286.53,0.00024931,2]
[321773542,1712505167126,-1372.06,0.00024931,2]
[321773543,1712505167136,-2580.19,0.00024931,2]
[321773544,1712505167149,-500.0,0.00024931,2]
[321773545,1712505167159,-500.0,0.00024931,2]
[321773546,1712505167168,-896.03,0.00024931,2]
[321773547,1712505167178,-500.0,0.00024931,2]
[321773548,1712505167189,-500.0,0.00024931,2]
[321773549,1712505167199,-1286.53,0.00024931,2]
[321773550,1712505167208,-500.0,0.00024931,2]
[321773551,1712505167219,-2580.19,0.00024931,2]
[321773552,1712505167230,-896.03,0.00024931,2]
[321773553,1712505167240,-500.0,0.00024931,2]
[321773554,1712505167249,-500.0,0.00024931,2]
[321773555,1712505167259,-591.06281426,0.00024931,2]
[321773556,1712505167269,-500.0,0.00024931,2]
[321773557,1712505167279,-1286.53,0.00024931,2]
[321773558,1712505167289,-1372.06,0.00024931,2]
[321773559,1712505167299,-500.0,0.00024931,2]
[321773560,1712505167309,-500.0,0.00024931,2]
[321773561,1712505167319,-500.0,0.00024931,2]
[321773562,1712505167328,-1286.53,0.00024931,2]
[321773563,1712505167338,-1372.06,0.00024931,2]
[321773564,1712505167347,-2580.19,0.00024931,2]
[321773565,1712505167357,-500.0,0.00024931,2]
[321773566,1712505167367,-896.03,0.00024931,2]
[321773567,1712505167377,-13720.9242856,0.0002496,2]
[321773568,1712505167565,-94568.63319927,0.0002496,2]
[321773569,1712505167574,-155.519,0.00024979,2]
[321773570,1712505167584,-17900.94350907,0.0002498,2]
[321773571,1712505167593,-1028019.07890893,0.0002498,2]
[321773572,1712505167622,-162.11590932,0.000219,2]
[321773573,1712505167632,-5387.95555788,0.0002498,2]
[321773574,1712505167692,-1286.53,0.00024931,2]
[321773575,1712505167703,-500.0,0.00024931,2]
[321773576,1712505167712,-1372.06,0.00024931,2]
[321773577,1712505167722,-13127.22855878,0.0002498,2]
[321773578,1712505167733,-366.976,0.0002498,2]
[321773579,1712505167745,-1198.68,0.0002498,2]
[321773580,1712505167776,-162.11590932,0.000219,2]
[321773581,1712505167786,-478.9100733,0.0002498,2]
[321773582,1712505168356,-2972.68600092,0.0002085,3]
[321773583,1712505168367,-514.04472172,0.0002085,3]
[321773584,1712505168377,-162.11590932,0.000219,2]
[321773585,1712505168387,-162.11590932,0.000219,2]
[321773586,1712505168396,-162.11590932,0.000219,2]
[321773587,1712505168406,-162.11590932,0.000219,2]
[321773588,1712505168416,-162.11590932,0.000219,2]
[321773589,1712505168426,-162.11590932,0.000219,2]
[321773590,1712505168436,-162.11590932,0.000219,2]
[321773591,1712505168446,-162.11590932,0.000219,2]
[321773592,1712505168456,-162.11590932,0.000219,2]
[321773593,1712505168466,-162.11590932,0.000219,2]
[321773594,1712505168475,-162.11590932,0.000219,2]
[321773595,1712505168485,-162.11590932,0.000219,2]
[321773596,1712505168495,-162.11590932,0.000219,2]
[321773597,1712505168504,-162.11590932,0.000219,2]
[321773598,1712505168514,-162.11590932,0.000219,2]
[321773599,1712505168523,-242.815,0.0002292,2]
[321773600,1712505168534,-164.693537,0.0002411,2]
[321773601,1712505168543,-500.0,0.00024931,2]
[321773602,1712505168553,-289.23565486,0.00024931,2]
[321773603,1712505168565,-210.76434514,0.00024931,2]
[321773604,1712505168575,-1286.53,0.00024931,2]
[321773605,1712505168584,-1372.06,0.00024931,2]
[321773606,1712505168594,-500.0,0.00024931,2]
[321773607,1712505168604,-2580.19,0.00024931,2]
[321773608,1712505168613,-896.03,0.00024931,2]
[321773609,1712505168623,-500.0,0.00024931,2]
[321773610,1712505168632,-500.0,0.00024931,2]
[321773611,1712505168642,-1286.53,0.00024931,2]
[321773612,1712505168651,-1372.06,0.00024931,2]
[321773613,1712505168661,-2580.19,0.00024931,2]
[321773614,1712505168670,-195.55,0.00024931,2]
[321773615,1712505168679,-896.03,0.00024931,2]
[321773616,1712505168689,-500.0,0.00024931,2]
[321773617,1712505168699,-1286.53,0.00024931,2]
[321773618,1712505168708,-1372.06,0.00024931,2]
[321773619,1712505168718,-2580.19,0.00024931,2]
[321773620,1712505168727,-576.11387271,0.00024931,2]
[321773621,1712505168743,-319.91612729,0.00024931,2]
[321773622,1712505168753,-500.0,0.00024931,2]
[321773623,1712505168763,-1286.53,0.00024931,2]
[321773624,1712505168772,-435.41438008,0.00024931,2]
[321773625,1712505168855,-64.58561992,0.00024931,2]
[321773626,1712505168864,-1372.06,0.00024931,2]
[321773627,1712505168873,-2580.19,0.00024931,2]
[321773628,1712505168883,-734.42,0.00024931,2]
[321773629,1712505168892,-896.03,0.00024931,2]
[321773630,1712505168901,-500.0,0.00024931,2]
[321773631,1712505168910,-500.0,0.00024931,2]
[321773632,1712505168919,-1372.06,0.00024931,2]
[321773633,1712505168929,-1286.53,0.00024931,2]
[321773634,1712505168938,-2580.19,0.00024931,2]
[321773635,1712505168947,-734.42,0.00024931,2]
[321773636,1712505168957,-896.03,0.00024931,2]
[321773637,1712505168967,-500.0,0.00024931,2]
[321773638,1712505168976,-2580.19,0.00024931,2]
[321773639,1712505168985,-416.31,0.00024931,2]
[321773640,1712505168994,-1372.06,0.00024931,2]
[321773641,1712505169004,-734.42,0.00024931,2]
[321773642,1712505169013,-896.03,0.00024931,2]
[321773643,1712505169022,-500.0,0.00024931,2]
[321773644,1712505169032,-2580.19,0.00024931,2]
[321773645,1712505169042,-1372.06,0.00024931,2]
[321773646,1712505169052,-734.63292599,0.00024931,2]
[321773647,1712505169062,-1286.53,0.00024931,2]
[321773648,1712505169071,-896.03,0.00024931,2]
[321773649,1712505169080,-500.0,0.00024931,2]
[321773650,1712505169090,-2580.19,0.00024931,2]
[321773651,1712505169099,-1372.06,0.00024931,2]
[321773652,1712505169108,-1286.53,0.00024931,2]
[321773653,1712505169117,-896.03,0.00024931,2]
[321773654,1712505169127,-500.0,0.00024931,2]
[321773655,1712505169136,-500.0,0.00024931,2]
[321773656,1712505169148,-2580.19,0.00024931,2]
[321773657,1712505169159,-1372.06,0.00024931,2]
[321773658,1712505169169,-896.03,0.00024931,2]
[321773659,1712505169178,-500.0,0.00024931,2]
[321773660,1712505169188,-500.0,0.00024931,2]
[321773661,1712505169199,-2580.19,0.00024931,2]
[321773662,1712505169209,-1372.06,0.00024931,2]
[321773663,1712505169219,-164.693537,0.00024932,2]
[321773664,1712505169231,-22842.05624837,0.0002498,2]
[321773665,1712505169276,-5288.97116224,0.0002498,2]
[321773666,1712505169862,-200.0,0.00020238,2]
[321773667,1712505169872,-1286.53,0.00024931,2]
[321773668,1712505169881,-5737.93266389,0.0002498,2]
[321773669,1712505169930,-840.71086365,0.00021399,2]
[321773670,1712505169940,-500.0,0.00024931,2]
[321773671,1712505169950,-896.03,0.00024931,2]
[321773672,1712505169960,-200.22101129,0.00024931,2]
[321773673,1712505169971,-299.77898871,0.00024931,2]
[321773674,1712505169981,-900.20588642,0.00024931,2]
[321773675,1712505169992,-565.079,0.00024931,2]
[321773676,1712505170297,-328.74518456,0.00019078,2]
[321773677,1712505170307,-155.13200727,0.000209,2]
[321773678,1712505170647,-2082.34014836,0.000209,2]
[321773679,1712505170659,-1061.78116083,0.000209,2]
[321773680,1712505170670,-973.36897061,0.000209,2]
[321773681,1712505170682,-3814.42435161,0.000209,2]
[321773682,1712505170703,-3473.42652,0.000209,2]
[321773683,1712505170754,-306.21779093,0.000209,2]
[321773684,1712505170779,-347.42299268,0.000209,2]
[321773685,1712505170791,-259.0,0.000209,2]
[321773686,1712505170804,-6298.33216482,0.000209,2]
[321773687,1712505170847,-14686.29454663,0.000209,2]
[321773688,1712505170860,-1114.90511358,0.00024931,2]
[321773689,1712505170870,-1372.06,0.00024931,2]
[321773690,1712505170880,-518.63612618,0.00024931,2]
[321773691,1712505170891,-1286.53,0.00024931,2]
[321773692,1712505170901,-2580.25606092,0.00024931,2]
[321773693,1712505170912,-896.03,0.00024931,2]
[321773694,1712505170922,-1372.06,0.00024931,2]
[321773695,1712505170932,-500.0,0.00024931,2]
[321773696,1712505170941,-1286.53,0.00024931,2]
[321773697,1712505170951,-896.03,0.00024931,2]
[321773698,1712505170961,-500.0,0.00024931,2]
[321773699,1712505170971,-1372.06,0.00024931,2]
[321773700,1712505170981,-1286.53,0.00024931,2]
[321773701,1712505170990,-500.0,0.00024931,2]
[321773702,1712505171000,-896.03,0.00024931,2]
[321773703,1712505171010,-1372.08770083,0.00024931,2]
[321773704,1712505171020,-1286.53,0.00024931,2]
[321773705,1712505171029,-514.79449862,0.00024931,2]
[321773706,1712505171039,-271.84403917,0.00024931,2]
[321773707,1712505171048,-805.31713499,0.00024931,2]
[321773708,1712505171061,-90.85800034,0.00024931,2]
[321773709,1712505171070,-677.20584341,0.00024931,2]
[321773710,1712505171082,-609.32415659,0.00024931,2]
[321773711,1712505171091,-1286.53,0.00024931,2]
[321773712,1712505171101,-1286.53,0.00024931,2]
[321773713,1712505171114,-1286.53,0.00024931,2]
[321773714,1712505171124,-13732.49224701,0.0002498,2]
[321773715,1712505171136,-959.32299553,0.0002498,2]
[321773716,1712505171188,-1286.75055069,0.00024931,2]
[321773717,1712505171198,-321.86535758,0.0002498,2]
[321773718,1712505175277,1810.82040602,0.00014376,2]
[321773719,1712505176048,293.07,0.000173,2]
[321773720,1712505178166,189.45,0.00016403,2]
[321773721,1712505183792,906.00883786,0.00015,2]
[321773722,1712505184066,364.6186435,0.00016718,2]
[321773723,1712505188044,408.00420871,0.00014999,2]
[321773724,1712505197477,205.0,9.8e-05,2]
[321773725,1712505201809,241.88420773,0.000101,2]
[321773726,1712505216715,24624.97877041,0.00016718,2]
[321773727,1712505237546,10574.53562848,0.00016718,2]
[321773728,1712505272664,450.47550195,0.00018,2]
[321773729,1712505279380,2683.97238196,0.0002,7]
[321773731,1712505613656,2070.267633,0.00018475,2]
[321773732,1712505643908,19293.02485812,0.0003,28]
[321773733,1712505674036,189.45,0.00015148,2]
[321773734,1712505754090,403.65,0.00018493,2]
[321773735,1712505766852,1375.34,0.00016575,2]
[321773736,1712505837163,-50000.0,0.00022,4]
[321773737,1712505918754,-2000.0,0.00018549,2]
[321773738,1712505919457,-173.81938731,0.00018549,2]
[321773739,1712505919479,-809.08158788,0.0001855,2]
[321773740,1712505919499,-210.06112711,0.00018551,2]
[321773741,1712505919520,-500.0,0.00018552,2]
[321773742,1712505919542,-307.0378977,0.00018553,2]
[321773743,1712505919758,-2000.0,0.00018548,2]
[321773744,1712505920471,-353.80413367,0.00018548,2]
[321773745,1712505920497,-934.15958797,0.00018553,2]
[321773746,1712505920519,-150.0,0.00018557,2]
[321773747,1712505920542,-562.03627836,0.00018559,2]
[321773748,1712505921383,-78.96372164,0.00018559,2]
[321773749,1712505921406,-1921.03627836,0.00018606,2]
[321773750,1712505922267,-2000.0,0.00018606,2]
[321773751,1712505922667,-2000.0,0.00018606,2]
[321773752,1712505923053,-2000.0,0.00018606,2]
[321773753,1712505923477,-2000.0,0.00018606,2]
[321773754,1712505923848,-2000.0,0.00018606,2]
[321773755,1712505940385,-166.70594189,0.00018519,2]
[321773756,1712505940407,-1833.29405811,0.00018606,2]
[321773757,1712505953416,-2000.0,0.00018606,2]
[321773758,1712505953873,-2000.0,0.00018606,2]
[321773759,1712505954790,-2000.0,0.00018606,2]
[321773760,1712506039800,208.24,0.00019329,3]
[321773761,1712506051038,624.72,0.00019329,3]
[321773762,1712506068001,400.0,0.00018491,2]
[321773763,1712506074641,1852.42,0.00018496,2]
[321773764,1712506107012,1750.0,0.00019,3]
[321773765,1712506124183,186.44,0.00018461,2]
[321773766,1712506137118,1190.85,0.00018461,2]
[321773767,1712506146166,-696.56,0.00018606,2]
[321773771,1712506154103,-1332.19966353,0.00018606,2]
[321773772,1712506154126,-500.0,0.00018617,2]
[321773773,1712506154149,-2141.44,0.00018619,2]
[321773774,1712506154173,-1119.71,0.00018631,2]
[321773775,1712506154193,-716.87,0.00018631,2]
[321773776,1712506154216,-250.0,0.0001868,2]
[321773777,1712506154237,-356.18,0.00018696,2]
[321773778,1712506154258,-150.0,0.00018698,2]
[321773779,1712506154280,-323.47391418,0.00018699,2]
[321773780,1712506165110,-607.89608582,0.00018699,2]
[321773781,1712506165130,-289.90048126,0.00018699,2]
[321773798,1712506232019,-10298.85910071,0.00018545,2]
[321773801,1712506232081,-521.97670531,0.00018545,2]
[321773803,1712506232295,-0.10307762,0.00018545,2]
[321773804,1712506232307,-5189.06111636,0.00018545,2]
[321773805,1712506232317,-1720.89951874,0.00018699,2]
[321773806,1712506232326,-415.52,0.00018699,2]
[321773807,1712506232335,-200.0,0.00018722,2]
[321773813,1712506232569,-697.07,0.00018728,2]
[321773815,1712506232579,-5398.67794935,0.00018838,2]
[321773819,1712506232604,-38668.6256077,0.00018838,2]
[321773821,1712506232614,-1375.34,0.00018839,2]
[321773823,1712506232623,-695.11,0.00018903,2]
[321773825,1712506232632,-536.07,0.00018903,2]
[321773827,1712506232641,-339.05,0.00018904,2]
[321773829,1712506232651,-339.05,0.00018956,2]
[321773831,1712506232660,-1483.57,0.00018966,2]
[321773833,1712506232670,-9999.99,0.00018966,2]
[321773835,1712506232680,-1277.12512462,0.0001899,2]
[321773837,1712506232689,-499.99,0.00019007,2]
[321773839,1712506232698,-339.05,0.00019008,2]
[321773841,1712506232708,-339.05,0.0001906,2]
[321773843,1712506232717,-300.0,0.00019068,2]
[321773845,1712506232727,-339.05,0.00019112,2]
[321773847,1712506232737,-339.05,0.00019164,2]
[321773849,1712506232747,-10392.93966207,0.00019168,2]
[321773850,1712506232756,-3684.42229177,0.00019168,2]
[321773851,1712506232766,-7476.56281696,0.00019168,2]
[321773852,1712506232777,-339.05,0.00019215,2]
[321773853,1712506232786,-168.6,0.00019224,2]
[321773854,1712506232795,-254.77376929,0.00019239,2]
[321773855,1712506232804,-600.0,0.00019262,2]
[321773856,1712506232814,-339.05,0.00019267,2]
[321773857,1712506232824,-339.05,0.00019319,2]
[321773858,1712506232833,-26579.64,0.00019339,2]
[321773859,1712506232842,-19999.99,0.00019339,2]
[321773860,1712506232851,-7508.35,0.00019339,2]
[321773861,1712506232860,-2875.32,0.00019339,2]
[321773862,1712506232870,-339.05,0.00019371,2]
[321773863,1712506232879,-339.05,0.00019423,2]
[321773864,1712506232889,-254.7737692,0.00019424,2]
[321773865,1712506232898,-339.05,0.00019475,2]
[321773866,1712506232907,-339.05,0.00019526,2]
[321773867,1712506232917,-339.05,0.00019578,2]
[321773868,1712506232926,-254.7737692,0.00019608,2]
[321773869,1712506232936,-339.05,0.0001963,2]
[321773870,1712506232945,-339.05,0.00019682,2]
[321773871,1712506232955,-339.05,0.00019734,2]
[321773872,1712506232964,-339.05,0.00019786,2]
[321773873,1712506232974,-254.7737692,0.00019793,2]
[321773874,1712506232983,-168.61,0.00019833,2]
[321773875,1712506232992,-339.05,0.00019837,2]
[321773876,1712506233002,-339.05,0.00019889,2]
[321773877,1712506233011,-254.7737692,0.00019977,2]
[321773878,1712506233020,-214.76069508,0.0002,2]
[321773879,1712506233030,-2545.60700568,0.0002,2]
[321773880,1712506233040,-182.18,0.00020098,2]
[321773881,1712506233049,-254.7737692,0.00020162,2]
[321773882,1712506233059,-254.7737692,0.00020346,2]
[321773883,1712506233068,-3720.4003,0.00020445,2]
[321773884,1712506233077,-1000.0,0.00020445,2]
[321773885,1712506233086,-35532.32872482,0.00020445,2]
[321773886,1712506233098,-8792.70990551,0.00020445,2]
[321773887,1712506233110,-4869.87206032,0.00020445,2]
[321773888,1712506233299,-284.49703418,0.00020445,2]
[321773889,1712506233310,-11651.33758025,0.00020445,2]
[321773890,1712506233339,-1755.23314733,0.00020445,2]
[321773891,1712506233351,-1934.24120179,0.00020445,2]
[321773892,1712506233363,-405.43770608,0.00020445,2]
[321773893,1712506233375,-6837.87559172,0.00020445,2]
[321773894,1712506233387,-11748.23135593,0.00020445,2]
[321773895,1712506233400,-783.132307,0.00020445,2]
[321773896,1712506233413,-5142.07172595,0.00020445,2]
[321773897,1712506233432,-4243.84407077,0.00020445,2]
[321773898,1712506233451,-24367.37028835,0.00020445,2]
[321773899,1712506233465,-469.83275297,0.00020468,2]
[321773900,1712506233475,-150.0,0.000205,2]
[321773901,1712506233485,-469.83275297,0.00020516,2]
[321773902,1712506233496,-254.7737692,0.00020531,2]
[321773903,1712506233510,-495.7896,0.00020545,2]
[321773904,1712506233520,-54392.4829,0.00020545,2]
[321773905,1712506233533,-469.83275297,0.00020564,2]
[321773906,1712506233543,-469.83275297,0.00020612,2]
[321773907,1712506233555,-65695.30729399,0.00020645,2]
[321773908,1712506233565,-469.83275297,0.0002066,2]
[321773909,1712506233575,-416.48,0.00020699,3]
[321773910,1712506233586,-328.74518456,0.000207,2]
[321773911,1712506233597,-469.83275297,0.00020708,2]
[321773912,1712506233608,-254.7737692,0.00020715,2]
[321773913,1712506233619,-1000.0,0.00020749,2]
[321773914,1712506233629,-469.83275297,0.00020756,2]
[321773915,1712506233639,-328.74518456,0.00020767,2]
[321773916,1712506233650,-166.70594188,0.00020798,2]
[321773917,1712506233660,-39921.1963,0.000208,2]
[321773918,1712506233671,-100000.0,0.000208,2]
[321773919,1712506233681,-215.96061491,0.000208,2]
[321773920,1712506233690,-400.0,0.00020802,2]
[321773921,1712506233700,-469.83275297,0.00020804,2]
[321773922,1712506233710,-328.74518456,0.00020833,2]
[321773923,1712506233719,-4714.58000487,0.00020847,2]
[321773924,1712506233728,-1613.57421944,0.00020848,2]
[321773925,1712506233738,-23283.26082031,0.00020849,2]
[321773926,1712506233748,-469.83275297,0.00020852,2]
[321773927,1712506233757,-178.52843388,0.00020887,2]
[321773928,1712506233767,-1000.0,0.00020897,2]
[321773929,1712506233778,-138810.40326535,0.00020897,2]
[321773930,1712506233787,-486.03849486,0.00020898,2]
[321773931,1712506233796,-155.0,0.00020898,2]
[321773932,1712506233805,-261.60041953,0.00020898,2]
[321773933,1712506233815,-214.91323373,0.00020898,2]
[321773934,1712506233825,-155.0,0.00020898,2]
[321773935,1712506233834,-155.0,0.00020898,2]
[321773936,1712506233844,-155.42857161,0.00020898,2]
[321773937,1712506233854,-165.71746394,0.00020898,2]
[321773938,1712506233866,-161.06954375,0.00020898,2]
[321773939,1712506233877,-736.2979285,0.00020898,2]
[321773940,1712506233888,-155.0,0.00020898,2]
[321773941,1712506233899,-155.0,0.00020898,2]
[321773942,1712506233912,-183.66929566,0.00020898,2]
[321773943,1712506233922,-665.77471081,0.00020898,2]
[321773944,1712506233933,-449.85093026,0.00020898,2]
[321773945,1712506233944,-374.76009664,0.00020898,2]
[321773946,1712506233955,-395.64639746,0.00020898,2]
[321773947,1712506233966,-223.36963369,0.00020898,2]
[321773948,1712506233976,-210.06112711,0.00020898,2]
[321773949,1712506233987,-9001.3256268,0.00020898,2]
[321773950,1712506233999,-350.53081303,0.00020899,2]
[321773951,1712506234010,-6000.0,0.00020899,2]
[321773952,1712506234021,-1000.0,0.000209,2]
[321773953,1712506234039,-118878.88062663,0.000209,2]
[321773954,1712506234061,-28832.76516565,0.000209,2]
[321773964,1712506237976,-342.34200025,0.00020898,2]
[321773965,1712506237986,-16833.8404204,0.000209,2]
[321773966,1712506238120,-1600.94642524,0.000209,2]
[321773967,1712506238134,-233612.23382521,0.000209,2]
[321773968,1712506238187,-276.8256,0.000209,2]
[321773969,1712506238303,-4388.6032507,0.000209,2]
[321773970,1712506238315,-5049.92620305,0.000209,2]
[321773971,1712506238369,-2014.93749098,0.000209,2]
[321773976,1712506238620,-0.06146188,0.000209,2]
[321773979,1712506238641,-1182.809,0.000209,2]
[321773980,1712506238653,-40714.62469773,0.000209,2]
[321773984,1712506240148,-54129.11466304,0.000209,2]
[321773985,1712506240211,-512.97389999,0.000209,2]
[321773986,1712506240223,-840.71707407,0.000209,2]
[321773987,1712506240333,-84796.12949146,0.000209,2]
[321773988,1712506240342,-469.83275297,0.000209,2]
[321773989,1712506240353,-6973.46144528,0.000209,3]
[321773990,1712506240362,-2010.69013525,0.000209,2]
[321773991,1712506240371,-254.7737692,0.000209,2]
[321773992,1712506240380,-328.74518456,0.000209,2]
[321773993,1712506240389,-469.01101585,0.000209,2]
[321773994,1712506240399,-1059.98936663,0.00020998,2]
[321773995,1712506240408,-287.37341859,0.00020998,2]
[321773996,1712506240418,-200.40383424,0.00020998,2]
[321773997,1712506240427,-931.14200947,0.00020999,2]
[321773998,1712506240436,-453.36169809,0.00021,2]
[321773999,1712506240445,-521284.19666418,0.00021,2]
[321774000,1712506240454,-5520346.49200775,0.00021,2]
[321774001,1712506241847,-19736.80264053,0.00021,2]
[321774002,1712506241911,-14625.29787747,0.00021,2]
[321774003,1712506241923,-10573.17771821,0.00021,2]
[321774004,1712506241934,-451.55188529,0.00021,2]
[321774020,1712506243201,-2970.99939752,0.00021,2]
[321774021,1712506243318,-5944.10446459,0.00021,2]
[321774023,1712506245177,-93.47241926,0.00021,2]
[321774072,1712506246172,-34494.08872452,0.00021,2]
[321774106,1712506401714,1750.0,0.00019,3]
[321774107,1712506594118,407.38638937,0.00018503,2]
[321774108,1712506604334,522.63989634,0.00018503,2]
[321774109,1712506621069,704.64333317,0.00018503,2]
[321774110,1712506721920,1042.43557655,0.00018503,2]
[321774111,1712506744194,155.0,0.00018503,2]
[321774112,1712506786476,155.0,0.00018503,2]
[321774113,1712506795645,407.38638937,0.00018503,2]
[321774114,1712506807917,189.14217404,0.00018503,2]
[321774115,1712506819008,530.83825632,0.00018503,2]
[321774116,1712506835093,1335.47,0.00017582,2]
[321774117,1712506881530,200.0,0.00017494,2]
[321774118,1712506957419,168.4004948,0.00018406,2]
[321774119,1712506993530,50000.0,0.00020167,5]
[321774120,1712506993558,10000.0,0.00020167,5]
[321774121,1712506993582,50000.0,0.00020167,5]
[321774122,1712506993605,50000.0,0.00020167,5]
[321774123,1712507299892,390.04159916,0.00018503,2]
[321774126,1712507311065,1283.65,0.00017297,2]
[321774128,1712507345318,-2353.80413367,0.00018504,2]
[321774129,1712507345341,-300.0,0.00018506,2]
[321774130,1712507345360,-161.0,0.00018697,2]
[321774131,1712507345380,-150.0,0.00018697,2]
[321774132,1712507345402,-45912.13486633,0.00018698,2]
[321774133,1712507352865,14839.54825788,0.00017297,2]
[321774134,1712507352896,9785.43051253,0.00017297,2]
[321774135,1712507356344,-6938.54518935,0.00018698,2]
[321774136,1712507358102,-6237.7534,0.00018698,2]
[321774137,1712507363151,-6454.84619023,0.00018698,2]
[321774138,1712507365098,-3001.57749078,0.00018698,2]
[321774139,1712507365122,-632.56160922,0.00018699,2]
[321774140,1712507368862,11801.21996068,0.00017297,2]
[321774185,1712507432326,-150.0,0.00018698,2]
[321774187,1712507432335,-1953.00777816,0.00018699,2]
[321774189,1712507432347,-17035.52524095,0.00018699,2]
[321774191,1712507432356,-168.40049474,0.00018805,2]
[321774193,1712507432366,-4506.66915258,0.00019056,2]
[321774194,1712507432375,-538.68,0.00019178,2]
[321774195,1712507432384,-168.40049474,0.00019204,2]
[321774196,1712507432394,-3442.56,0.00019204,2]
[321774197,1712507432403,-6786.15,0.00019204,2]
[321774198,1712507432412,-3345.39,0.00019234,2]
[321774199,1712507432421,-5362.81,0.00019241,2]
[321774200,1712507432430,-240.0,0.00019298,2]
[321774201,1712507432439,-189.71,0.00019305,2]
[321774202,1712507432449,-319.02,0.00019306,2]
[321774203,1712507432458,-548.23,0.00019311,2]
[321774204,1712507432467,-154.76,0.00019378,2]
[321774205,1712507432476,-150.0,0.00019407,2]
[321774206,1712507432485,-201.85,0.0001941,2]
[321774207,1712507432495,-310.31,0.00019495,2]
[321774208,1712507432689,-176.39,0.00019495,2]
[321774209,1712507432699,-1283.65,0.00019561,2]
[321774210,1712507432709,-168.40049474,0.00019603,2]
[321774211,1712507432719,-499.99,0.00019617,2]
[321774212,1712507432728,-154.76,0.00019715,2]
[321774213,1712507432737,-167.0,0.0001989,2]
[321774214,1712507432747,-760.0,0.00019922,2]
[321774215,1712507432756,-4519.01,0.00019922,2]
[321774216,1712507432766,-155.0,0.0002,2]
[321774217,1712507432777,-1150.22921194,0.0002,2]
[321774218,1712507432786,-155.0,0.0002,2]
[321774219,1712507432795,-3000.0,0.0002,2]
[321774220,1712507432805,-168.40049474,0.00020002,2]
[321774221,1712507432815,-905.99,0.00020027,2]
[321774222,1712507432824,-905.99,0.00020027,2]
[321774223,1712507432834,-154.76,0.00020052,2]
[321774224,1712507432847,-417.53,0.00020164,2]
[321774225,1712507432857,-519.99,0.00020164,2]
[321774226,1712507432867,-397.2,0.00020164,2]